[Event "Titled Tuesday Blitz October 04 Late 2022"]
[White "Lazavik, Denis"]
[Black "Mahajan, Rushaan"]
[WhiteFideId "13515110"]
[BlackFideId "30934222"]
[WhiteElo "2437"]
[BlackElo "2148"]
[Result "1/2-1/2"]
[Round "01"]
[TimeControl "180+1"]
[Date "2022.10.04"]
[WhiteClock "0:00:06"]
[BlackClock "0:00:04"]

1. d4 {[%clk 0:03:00]}  Nf6 {[%clk 0:02:59]} 2. c4 {[%clk 0:03:01]}  e6 {[%clk 0:03:00]} 3. Nf3 {[%clk 0:03:01]}  d5 {[%clk 0:02:57]} 4. Nc3 {[%clk 0:03:02]}  Nbd7 {[%clk 0:02:58]} 5. cxd5 {[%clk 0:03:00]}  exd5 {[%clk 0:02:58]} 6. Bg5 {[%clk 0:03:01]}  c6 {[%clk 0:02:58]} 7. e3 {[%clk 0:03:01]}  Qa5 {[%clk 0:02:58]} 8. Nd2 {[%clk 0:02:40]}  Ne4 {[%clk 0:02:52]} 9. Ndxe4 {[%clk 0:02:29]}  dxe4 {[%clk 0:02:52]} 10. Bh4 {[%clk 0:02:29]}  Nb6 {[%clk 0:02:52]} 11. Qd2 {[%clk 0:02:23]}  Bb4 {[%clk 0:02:34]} 12. Rc1 {[%clk 0:02:19]}  Be6 {[%clk 0:02:08]} 13. a3 {[%clk 0:02:04]}  Bxc3 {[%clk 0:02:07]} 14. Rxc3 {[%clk 0:01:55]}  Nd5 {[%clk 0:02:02]} 15. Rc5 {[%clk 0:01:54]}  Qxd2+ {[%clk 0:01:57]} 16. Kxd2 {[%clk 0:01:55]}  Kd7 {[%clk 0:01:57]} 17. Be2 {[%clk 0:01:54]}  f5 {[%clk 0:01:54]} 18. Bg3 {[%clk 0:01:49]}  g5 {[%clk 0:01:53]} 19. Be5 {[%clk 0:01:48]}  Rhf8 {[%clk 0:01:47]} 20. h4 {[%clk 0:01:48]}  g4 {[%clk 0:01:43]} 21. g3 {[%clk 0:01:44]}  h5 {[%clk 0:01:42]} 22. b4 {[%clk 0:01:40]}  a6 {[%clk 0:01:40]} 23. Rhc1 {[%clk 0:01:38]}  Rfc8 {[%clk 0:01:39]} 24. Rb1 {[%clk 0:01:16]}  Nb6 {[%clk 0:01:34]} 25. Bf4 {[%clk 0:01:07]}  Nd5 {[%clk 0:01:32]} 26. a4 {[%clk 0:01:03]}  Nxf4 {[%clk 0:01:06]} 27. exf4 {[%clk 0:00:57]}  Bd5 {[%clk 0:00:59]} 28. Ke3 {[%clk 0:00:57]}  Rc7 {[%clk 0:00:51]} 29. Rbc1 {[%clk 0:00:56]}  Kd6 {[%clk 0:00:46]} 30. R5c3 {[%clk 0:00:50]}  Rac8 {[%clk 0:00:43]} 31. Bc4 {[%clk 0:00:41]}  b5 {[%clk 0:00:27]} 32. Be2 {[%clk 0:00:19]}  bxa4 {[%clk 0:00:24]} 33. Bxa6 {[%clk 0:00:18]}  Rb8 {[%clk 0:00:25]} 34. b5 {[%clk 0:00:16]}  Rb6 {[%clk 0:00:18]} 35. Kd2 {[%clk 0:00:14]}  Ra7 {[%clk 0:00:16]} 36. Rc5 {[%clk 0:00:09]}  cxb5 {[%clk 0:00:12]} 37. Bxb5 {[%clk 0:00:09]}  a3 {[%clk 0:00:12]} 38. Ra1 {[%clk 0:00:09]}  Ra5 {[%clk 0:00:09]} 39. Be2 {[%clk 0:00:08]}  Rxc5 {[%clk 0:00:08]} 40. dxc5+ {[%clk 0:00:09]}  Kxc5 {[%clk 0:00:08]} 41. Rxa3 {[%clk 0:00:09]}  Rb2+ {[%clk 0:00:08]} 42. Ke3 {[%clk 0:00:10]}  Rb3+ {[%clk 0:00:06]} 43. Rxb3 {[%clk 0:00:10]}  Bxb3 {[%clk 0:00:06]} 44. Ba6 {[%clk 0:00:11]}  Be6 {[%clk 0:00:05]} 45. Bb7 {[%clk 0:00:10]}  Kb6 {[%clk 0:00:04]} 46. Ba8 {[%clk 0:00:11]}  Kc5 {[%clk 0:00:04]} 47. Kd2 {[%clk 0:00:09]}  Bd5 {[%clk 0:00:03]} 48. Bxd5 {[%clk 0:00:05]}  Kxd5 {[%clk 0:00:04]} 49. Kc3 {[%clk 0:00:04]}  Kc5 {[%clk 0:00:04]} 50. Kc2 {[%clk 0:00:04]}  Kc4 {[%clk 0:00:04]} 51. Kd2 {[%clk 0:00:04]}  Kd4 {[%clk 0:00:04]} 52. Ke2 {[%clk 0:00:05]}  e3 {[%clk 0:00:02]} 53. fxe3+ {[%clk 0:00:05]}  Ke4 {[%clk 0:00:03]} 54. Kf2 {[%clk 0:00:03]}  Kd3 {[%clk 0:00:03]} 55. e4 {[%clk 0:00:04]}  Kxe4 {[%clk 0:00:03]} 56. Ke2 {[%clk 0:00:04]}  Kd4 {[%clk 0:00:04]} 57. Kd2 {[%clk 0:00:05]}  Kc4 {[%clk 0:00:04]} 58. Kc2 {[%clk 0:00:05]}  Kd4 {[%clk 0:00:04]} 59. Kd2 {[%clk 0:00:06]}  Ke4 {[%clk 0:00:04]} 60. Ke2 {[%clk 0:00:06]}  Kd4 {[%clk 0:00:04]} 1/2-1/2


[Site "https://www.chess.com"]

[Event "Titled Tuesday Blitz October 04 Late 2022"]
[White "Nakamura, Hikaru"]
[Black "Poltorak, Sebastian"]
[WhiteFideId "2016192"]
[BlackFideId "1199498"]
[WhiteElo "2909"]
[BlackElo "2232"]
[Result "1-0"]
[Round "01"]
[TimeControl "180+1"]
[Date "2022.10.04"]
[WhiteClock "0:01:21"]
[BlackClock "0:00:19"]

1. Nf3 {[%clk 0:03:00]}  c5 {[%clk 0:02:59]} 2. g3 {[%clk 0:02:57]}  Nc6 {[%clk 0:02:59]} 3. d4 {[%clk 0:02:56]}  cxd4 {[%clk 0:02:58]} 4. Nxd4 {[%clk 0:02:56]}  Nf6 {[%clk 0:02:50]} 5. Bg2 {[%clk 0:02:50]}  d5 {[%clk 0:02:47]} 6. O-O {[%clk 0:02:46]}  g6 {[%clk 0:02:44]} 7. c4 {[%clk 0:02:39]}  Nxd4 {[%clk 0:02:17]} 8. Qxd4 {[%clk 0:02:38]}  Be6 {[%clk 0:02:15]} 9. Rd1 {[%clk 0:02:13]}  dxc4 {[%clk 0:02:02]} 10. Bxb7 {[%clk 0:02:11]}  Qxd4 {[%clk 0:01:37]} 11. Rxd4 {[%clk 0:02:12]}  Rd8 {[%clk 0:01:32]} 12. Rxd8+ {[%clk 0:01:48]}  Kxd8 {[%clk 0:01:31]} 13. Nc3 {[%clk 0:01:49]}  Bg7 {[%clk 0:01:19]} 14. Bf4 {[%clk 0:01:49]}  Nd7 {[%clk 0:00:36]} 15. Rd1 {[%clk 0:01:48]}  Bh3 {[%clk 0:00:37]} 16. Ba6 {[%clk 0:01:43]}  e5 {[%clk 0:00:36]} 17. Bg5+ {[%clk 0:01:37]}  f6 {[%clk 0:00:36]} 18. Be3 {[%clk 0:01:37]}  Ke7 {[%clk 0:00:32]} 19. Nd5+ {[%clk 0:01:28]}  Kf7 {[%clk 0:00:27]} 20. Bxc4 {[%clk 0:01:28]}  Be6 {[%clk 0:00:27]} 21. Nc7 {[%clk 0:01:28]}  Bxc4 {[%clk 0:00:25]} 22. Rxd7+ {[%clk 0:01:28]}  Kg8 {[%clk 0:00:24]} 23. Ne8 {[%clk 0:01:22]}  Bf7 {[%clk 0:00:22]} 24. Nd6 {[%clk 0:01:20]}  Be6 {[%clk 0:00:19]} 25. Rd8+ {[%clk 0:01:20]}  Bf8 {[%clk 0:00:19]} 26. Bh6 {[%clk 0:01:21]} 1-0


[Site "https://www.chess.com"]

[Event "Titled Tuesday Blitz October 04 Late 2022"]
[White "Ozates, Tuna"]
[Black "Nepomniachtchi, Ian"]
[WhiteFideId "6354521"]
[BlackFideId "4168119"]
[WhiteElo "2151"]
[BlackElo "2781"]
[Result "0-1"]
[Round "01"]
[TimeControl "180+1"]
[Date "2022.10.04"]
[WhiteClock "0:00:08"]
[BlackClock "0:01:17"]

1. e4 {[%clk 0:02:58]}  c5 {[%clk 0:02:59]} 2. Nf3 {[%clk 0:02:58]}  e6 {[%clk 0:02:59]} 3. d4 {[%clk 0:02:58]}  cxd4 {[%clk 0:03:00]} 4. Nxd4 {[%clk 0:02:59]}  Nc6 {[%clk 0:03:00]} 5. Nc3 {[%clk 0:02:59]}  a6 {[%clk 0:03:00]} 6. Be3 {[%clk 0:02:52]}  Qc7 {[%clk 0:03:00]} 7. a3 {[%clk 0:02:43]}  Nf6 {[%clk 0:02:57]} 8. f4 {[%clk 0:02:42]}  Nxd4 {[%clk 0:02:46]} 9. Bxd4 {[%clk 0:02:35]}  Qxf4 {[%clk 0:02:45]} 10. g3 {[%clk 0:02:28]}  Qc7 {[%clk 0:02:41]} 11. e5 {[%clk 0:02:28]}  Nd5 {[%clk 0:02:29]} 12. Nxd5 {[%clk 0:02:28]}  exd5 {[%clk 0:02:30]} 13. Bg2 {[%clk 0:02:29]}  Bc5 {[%clk 0:02:27]} 14. O-O {[%clk 0:02:18]}  O-O {[%clk 0:02:27]} 15. Bxd5 {[%clk 0:02:11]}  d6 {[%clk 0:02:27]} 16. exd6 {[%clk 0:02:00]}  Qxd6 {[%clk 0:02:28]} 17. c4 {[%clk 0:01:43]}  Be6 {[%clk 0:02:27]} 18. b4 {[%clk 0:01:30]}  Bxd4+ {[%clk 0:02:27]} 19. Qxd4 {[%clk 0:01:31]}  Bxd5 {[%clk 0:02:27]} 20. cxd5 {[%clk 0:01:32]}  Rad8 {[%clk 0:02:25]} 21. Rad1 {[%clk 0:01:32]}  Rfe8 {[%clk 0:02:25]} 22. Rd2 {[%clk 0:01:27]}  Re5 {[%clk 0:02:21]} 23. Rfd1 {[%clk 0:01:20]}  h5 {[%clk 0:02:18]} 24. Kg2 {[%clk 0:01:15]}  Rde8 {[%clk 0:02:14]} 25. Rf2 {[%clk 0:01:12]}  Rc8 {[%clk 0:02:03]} 26. Qf4 {[%clk 0:01:08]}  f6 {[%clk 0:01:56]} 27. Qd4 {[%clk 0:01:04]}  b5 {[%clk 0:01:55]} 28. Rfd2 {[%clk 0:00:53]}  Rc4 {[%clk 0:01:55]} 29. Qd3 {[%clk 0:00:42]}  h4 {[%clk 0:01:54]} 30. Qf3 {[%clk 0:00:42]}  Rg5 {[%clk 0:01:43]} 31. Re1 {[%clk 0:00:37]}  hxg3 {[%clk 0:01:35]} 32. hxg3 {[%clk 0:00:37]}  Rcg4 {[%clk 0:01:35]} 33. Rd3 {[%clk 0:00:16]}  Rxg3+ {[%clk 0:01:34]} 34. Qxg3 {[%clk 0:00:17]}  Rxg3+ {[%clk 0:01:35]} 35. Rxg3 {[%clk 0:00:18]}  Qxd5+ {[%clk 0:01:35]} 36. Rf3 {[%clk 0:00:19]}  Kf7 {[%clk 0:01:32]} 37. Kf2 {[%clk 0:00:18]}  g5 {[%clk 0:01:31]} 38. Ree3 {[%clk 0:00:17]}  Kg6 {[%clk 0:01:30]} 39. Rd3 {[%clk 0:00:17]}  Qe4 {[%clk 0:01:28]} 40. Rd6 {[%clk 0:00:16]}  Qe5 {[%clk 0:01:20]} 41. Rxa6 {[%clk 0:00:15]}  g4 {[%clk 0:01:18]} 42. Rfxf6+ {[%clk 0:00:02]}  Qxf6+ {[%clk 0:01:19]} 43. Rxf6+ {[%clk 0:00:03]}  Kxf6 {[%clk 0:01:20]} 44. Kg3 {[%clk 0:00:04]}  Kf5 {[%clk 0:01:20]} 45. Kg2 {[%clk 0:00:04]}  Kf4 {[%clk 0:01:16]} 46. Kf2 {[%clk 0:00:05]}  g3+ {[%clk 0:01:15]} 47. Kg2 {[%clk 0:00:05]}  Kg4 {[%clk 0:01:16]} 48. Kg1 {[%clk 0:00:05]}  Kf3 {[%clk 0:01:15]} 49. Kf1 {[%clk 0:00:06]}  g2+ {[%clk 0:01:15]} 50. Kg1 {[%clk 0:00:05]}  Kg3 {[%clk 0:01:16]} 51. a4 {[%clk 0:00:06]}  bxa4 {[%clk 0:01:16]} 52. b5 {[%clk 0:00:07]}  a3 {[%clk 0:01:17]} 53. b6 {[%clk 0:00:08]}  a2 {[%clk 0:01:18]} 54. b7 {[%clk 0:00:08]}  a1=R# {[%clk 0:01:17]} 0-1


[Site "https://www.chess.com"]

[Event "Titled Tuesday Blitz October 04 Late 2022"]
[White "Riff, Vincent"]
[Black "Bortnyk, Olexandr"]
[WhiteFideId "617776"]
[BlackFideId "14120828"]
[WhiteElo "2369"]
[BlackElo "2723"]
[Result "0-1"]
[Round "01"]
[TimeControl "180+1"]
[Date "2022.10.04"]
[WhiteClock "0:00:11"]
[BlackClock "0:00:36"]

1. e4 {[%clk 0:02:57]}  Nf6 {[%clk 0:02:59]} 2. Nc3 {[%clk 0:02:55]}  d5 {[%clk 0:02:59]} 3. exd5 {[%clk 0:02:54]}  Nxd5 {[%clk 0:03:00]} 4. Nf3 {[%clk 0:02:54]}  Nxc3 {[%clk 0:03:00]} 5. dxc3 {[%clk 0:02:52]}  Qxd1+ {[%clk 0:02:58]} 6. Kxd1 {[%clk 0:02:52]}  Bg4 {[%clk 0:02:58]} 7. Be2 {[%clk 0:02:52]}  Nc6 {[%clk 0:02:58]} 8. Be3 {[%clk 0:02:50]}  O-O-O+ {[%clk 0:02:58]} 9. Kc1 {[%clk 0:02:50]}  f6 {[%clk 0:02:58]} 10. b3 {[%clk 0:02:45]}  e5 {[%clk 0:02:57]} 11. Kb2 {[%clk 0:02:45]}  a6 {[%clk 0:02:51]} 12. h3 {[%clk 0:02:42]}  Be6 {[%clk 0:02:49]} 13. Rhd1 {[%clk 0:02:34]}  Be7 {[%clk 0:02:49]} 14. Nd2 {[%clk 0:02:33]}  Rd7 {[%clk 0:02:44]} 15. Ne4 {[%clk 0:02:15]}  Rhd8 {[%clk 0:02:43]} 16. Rxd7 {[%clk 0:02:14]}  Rxd7 {[%clk 0:02:44]} 17. g4 {[%clk 0:02:12]}  Bd5 {[%clk 0:02:22]} 18. Bd3 {[%clk 0:02:09]}  g6 {[%clk 0:02:18]} 19. Ng3 {[%clk 0:02:07]}  Bf3 {[%clk 0:01:59]} 20. Re1 {[%clk 0:01:59]}  Kd8 {[%clk 0:01:54]} 21. a4 {[%clk 0:01:55]}  Ke8 {[%clk 0:01:54]} 22. Bc4 {[%clk 0:01:49]}  Bd5 {[%clk 0:01:48]} 23. Bd3 {[%clk 0:01:47]}  Kf7 {[%clk 0:01:48]} 24. h4 {[%clk 0:01:27]}  Nd8 {[%clk 0:01:46]} 25. h5 {[%clk 0:01:27]}  Ne6 {[%clk 0:01:43]} 26. hxg6+ {[%clk 0:01:27]}  hxg6 {[%clk 0:01:44]} 27. Rg1 {[%clk 0:01:02]}  Bc5 {[%clk 0:01:25]} 28. b4 {[%clk 0:00:59]}  Bxe3 {[%clk 0:01:25]} 29. fxe3 {[%clk 0:00:59]}  Ng5 {[%clk 0:01:24]} 30. e4 {[%clk 0:00:57]}  Be6 {[%clk 0:01:22]} 31. Ne2 {[%clk 0:00:55]}  Kg7 {[%clk 0:01:21]} 32. c4 {[%clk 0:00:54]}  Rd8 {[%clk 0:01:16]} 33. Nc3 {[%clk 0:00:54]}  Rd4 {[%clk 0:01:14]} 34. Ne2 {[%clk 0:00:49]}  Rd8 {[%clk 0:01:14]} 35. Nc3 {[%clk 0:00:49]}  c6 {[%clk 0:01:15]} 36. b5 {[%clk 0:00:48]}  a5 {[%clk 0:01:09]} 37. Nd1 {[%clk 0:00:42]}  Rd4 {[%clk 0:00:56]} 38. Nc3 {[%clk 0:00:30]}  Rd8 {[%clk 0:00:44]} 39. c5 {[%clk 0:00:29]}  Rh8 {[%clk 0:00:39]} 40. b6 {[%clk 0:00:29]}  Kf7 {[%clk 0:00:38]} 41. Nd1 {[%clk 0:00:27]}  Ke7 {[%clk 0:00:38]} 42. Ne3 {[%clk 0:00:27]}  Rh3 {[%clk 0:00:38]} 43. Nc4 {[%clk 0:00:26]}  Bxc4 {[%clk 0:00:37]} 44. Bxc4 {[%clk 0:00:27]}  Nxe4 {[%clk 0:00:38]} 45. g5 {[%clk 0:00:24]}  f5 {[%clk 0:00:37]} 46. Bf1 {[%clk 0:00:20]}  Rh4 {[%clk 0:00:36]} 47. Bg2 {[%clk 0:00:11]}  Nxc5 {[%clk 0:00:36]} 0-1


[Site "https://www.chess.com"]

[Event "Titled Tuesday Blitz October 04 Late 2022"]
[White "Sarana, Alexey"]
[Black "Hnydiuk, Aleksander"]
[WhiteFideId "24133795"]
[BlackFideId "1109057"]
[WhiteElo "2689"]
[BlackElo "2374"]
[Result "1-0"]
[Round "01"]
[TimeControl "180+1"]
[Date "2022.10.04"]
[WhiteClock "0:00:49"]
[BlackClock "0:00:04"]

1. d4 {[%clk 0:02:59]}  Nf6 {[%clk 0:02:58]} 2. c4 {[%clk 0:03:00]}  e6 {[%clk 0:02:58]} 3. Nc3 {[%clk 0:03:00]}  Bb4 {[%clk 0:02:57]} 4. e3 {[%clk 0:03:01]}  O-O {[%clk 0:02:57]} 5. Bd3 {[%clk 0:03:01]}  d5 {[%clk 0:02:56]} 6. a3 {[%clk 0:03:02]}  Bxc3+ {[%clk 0:02:54]} 7. bxc3 {[%clk 0:03:03]}  dxc4 {[%clk 0:02:54]} 8. Bxc4 {[%clk 0:03:03]}  c5 {[%clk 0:02:54]} 9. Ne2 {[%clk 0:03:04]}  Qc7 {[%clk 0:02:54]} 10. Bd3 {[%clk 0:03:04]}  b6 {[%clk 0:02:54]} 11. e4 {[%clk 0:03:04]}  Ba6 {[%clk 0:02:50]} 12. Bg5 {[%clk 0:03:03]}  Bxd3 {[%clk 0:02:39]} 13. Qxd3 {[%clk 0:03:04]}  Nbd7 {[%clk 0:02:39]} 14. O-O {[%clk 0:03:04]}  Rac8 {[%clk 0:02:33]} 15. e5 {[%clk 0:03:03]}  c4 {[%clk 0:02:07]} 16. Qh3 {[%clk 0:03:02]}  Nd5 {[%clk 0:02:05]} 17. Nf4 {[%clk 0:03:02]}  Nxf4 {[%clk 0:02:02]} 18. Bxf4 {[%clk 0:03:02]}  b5 {[%clk 0:01:50]} 19. a4 {[%clk 0:03:01]}  bxa4 {[%clk 0:01:18]} 20. Qg3 {[%clk 0:02:54]}  Nb6 {[%clk 0:01:06]} 21. h4 {[%clk 0:02:43]}  a5 {[%clk 0:01:02]} 22. Rfb1 {[%clk 0:02:41]}  Kh8 {[%clk 0:00:56]} 23. Rb5 {[%clk 0:02:36]}  Ra8 {[%clk 0:00:45]} 24. h5 {[%clk 0:02:32]}  h6 {[%clk 0:00:45]} 25. Rc5 {[%clk 0:02:31]}  Qd7 {[%clk 0:00:42]} 26. Qf3 {[%clk 0:02:22]}  Rfc8 {[%clk 0:00:39]} 27. Qe4 {[%clk 0:02:00]}  Rxc5 {[%clk 0:00:38]} 28. dxc5 {[%clk 0:02:01]}  Nd5 {[%clk 0:00:38]} 29. Qxc4 {[%clk 0:02:01]}  Rc8 {[%clk 0:00:36]} 30. Bc1 {[%clk 0:01:54]}  Qc6 {[%clk 0:00:35]} 31. Ba3 {[%clk 0:01:54]}  Nc7 {[%clk 0:00:28]} 32. Bc1 {[%clk 0:01:27]}  Na6 {[%clk 0:00:24]} 33. Rxa4 {[%clk 0:01:06]}  Nxc5 {[%clk 0:00:20]} 34. Rxa5 {[%clk 0:01:06]}  Nd7 {[%clk 0:00:15]} 35. Qxc6 {[%clk 0:01:04]}  Rxc6 {[%clk 0:00:16]} 36. Bd2 {[%clk 0:01:04]}  Nb6 {[%clk 0:00:16]} 37. f4 {[%clk 0:01:00]}  Nc4 {[%clk 0:00:13]} 38. Ra8+ {[%clk 0:01:01]}  Kh7 {[%clk 0:00:14]} 39. Be1 {[%clk 0:01:01]}  Nb2 {[%clk 0:00:11]} 40. Rd8 {[%clk 0:00:58]}  Na4 {[%clk 0:00:10]} 41. Rd3 {[%clk 0:00:58]}  Nb2 {[%clk 0:00:11]} 42. Rd4 {[%clk 0:00:57]}  Rc4 {[%clk 0:00:07]} 43. Rxc4 {[%clk 0:00:57]}  Nxc4 {[%clk 0:00:08]} 44. Kf2 {[%clk 0:00:58]}  g6 {[%clk 0:00:07]} 45. g4 {[%clk 0:00:58]}  gxh5 {[%clk 0:00:07]} 46. gxh5 {[%clk 0:00:58]}  Kg8 {[%clk 0:00:07]} 47. Ke2 {[%clk 0:00:59]}  Kf8 {[%clk 0:00:07]} 48. Kd3 {[%clk 0:00:59]}  Nb6 {[%clk 0:00:07]} 49. c4 {[%clk 0:00:59]}  Nd7 {[%clk 0:00:07]} 50. Kd4 {[%clk 0:00:57]}  f5 {[%clk 0:00:07]} 51. c5 {[%clk 0:00:54]}  Nb8 {[%clk 0:00:07]} 52. Kc4 {[%clk 0:00:52]}  Ke8 {[%clk 0:00:07]} 53. Kb5 {[%clk 0:00:53]}  Kd7 {[%clk 0:00:08]} 54. Kb6 {[%clk 0:00:51]}  Nc6 {[%clk 0:00:09]} 55. Bh4 {[%clk 0:00:51]}  Nd4 {[%clk 0:00:08]} 56. Bf6 {[%clk 0:00:50]}  Kc8 {[%clk 0:00:05]} 57. Bg7 {[%clk 0:00:49]}  Ne2 {[%clk 0:00:04]} 58. Bxh6 {[%clk 0:00:47]}  Ng3 {[%clk 0:00:05]} 59. Kc6 {[%clk 0:00:47]}  Nxh5 {[%clk 0:00:06]} 60. Kd6 {[%clk 0:00:48]}  Ng3 {[%clk 0:00:03]} 61. Kxe6 {[%clk 0:00:48]}  Kc7 {[%clk 0:00:03]} 62. Kf7 {[%clk 0:00:48]}  Kc6 {[%clk 0:00:04]} 63. e6 {[%clk 0:00:49]}  Ne4 {[%clk 0:00:04]} 64. e7 {[%clk 0:00:49]} 1-0


[Site "https://www.chess.com"]

[Event "Titled Tuesday Blitz October 04 Late 2022"]
[White "Sivakumar, Shaaketh"]
[Black "Kamsky, Gata"]
[WhiteFideId "30940176"]
[BlackFideId "2000024"]
[WhiteElo "2174"]
[BlackElo "2666"]
[Result "0-1"]
[Round "01"]
[TimeControl "180+1"]
[Date "2022.10.04"]
[WhiteClock "0:00:54"]
[BlackClock "0:01:10"]

1. e4 {[%clk 0:03:00]}  c5 {[%clk 0:02:54]} 2. Nf3 {[%clk 0:03:00]}  e6 {[%clk 0:02:53]} 3. g3 {[%clk 0:02:59]}  Nc6 {[%clk 0:02:49]} 4. Bg2 {[%clk 0:02:59]}  Nf6 {[%clk 0:02:49]} 5. Qe2 {[%clk 0:02:55]}  e5 {[%clk 0:02:44]} 6. c3 {[%clk 0:02:55]}  Be7 {[%clk 0:02:40]} 7. O-O {[%clk 0:02:55]}  d6 {[%clk 0:02:34]} 8. h3 {[%clk 0:02:52]}  O-O {[%clk 0:02:32]} 9. Rd1 {[%clk 0:02:39]}  Qc7 {[%clk 0:02:28]} 10. Na3 {[%clk 0:02:31]}  a6 {[%clk 0:02:27]} 11. Nc2 {[%clk 0:02:29]}  Re8 {[%clk 0:02:22]} 12. d4 {[%clk 0:02:23]}  exd4 {[%clk 0:02:16]} 13. cxd4 {[%clk 0:02:24]}  Bf8 {[%clk 0:02:16]} 14. Nd2 {[%clk 0:01:59]}  cxd4 {[%clk 0:02:12]} 15. Nb3 {[%clk 0:01:47]}  Bf5 {[%clk 0:01:57]} 16. Nbxd4 {[%clk 0:01:31]}  Bxe4 {[%clk 0:01:56]} 17. Bxe4 {[%clk 0:01:28]}  Nxe4 {[%clk 0:01:46]} 18. Qd3 {[%clk 0:01:27]}  d5 {[%clk 0:01:40]} 19. Bf4 {[%clk 0:01:19]}  Qb6 {[%clk 0:01:39]} 20. b3 {[%clk 0:01:15]}  Rad8 {[%clk 0:01:35]} 21. Ne3 {[%clk 0:01:15]}  Nxd4 {[%clk 0:01:31]} 22. Qxd4 {[%clk 0:01:12]}  Bc5 {[%clk 0:01:24]} 23. Qd3 {[%clk 0:01:11]}  g5 {[%clk 0:01:22]} 24. Nxd5 {[%clk 0:01:05]}  Nxf2 {[%clk 0:01:15]} 25. Qf5 {[%clk 0:00:58]}  Nxd1+ {[%clk 0:01:14]} 26. Kg2 {[%clk 0:00:57]}  Rxd5 {[%clk 0:01:10]} 27. Qxd5 {[%clk 0:00:55]}  Ne3+ {[%clk 0:01:09]} 28. Bxe3 {[%clk 0:00:54]}  Bxe3 {[%clk 0:01:10]} 0-1


[Site "https://www.chess.com"]

[Event "Titled Tuesday Blitz October 04 Late 2022"]
[White "Vazquez, Guillermo"]
[Black "Malka, Samuel"]
[WhiteFideId "3702308"]
[BlackFideId "20643675"]
[WhiteElo "2543"]
[BlackElo "2509"]
[Result "1-0"]
[Round "01"]
[TimeControl "180+1"]
[Date "2022.10.04"]
[WhiteClock "0:01:31"]
[BlackClock "0:00:05"]

1. b3 {[%clk 0:03:00]}  e5 {[%clk 0:02:58]} 2. Bb2 {[%clk 0:03:01]}  Nc6 {[%clk 0:02:56]} 3. c4 {[%clk 0:03:01]}  Nf6 {[%clk 0:02:56]} 4. e3 {[%clk 0:02:59]}  d5 {[%clk 0:02:55]} 5. cxd5 {[%clk 0:03:00]}  Nxd5 {[%clk 0:02:55]} 6. a3 {[%clk 0:03:00]}  Bd6 {[%clk 0:02:53]} 7. d3 {[%clk 0:03:00]}  O-O {[%clk 0:02:50]} 8. Nd2 {[%clk 0:03:00]}  Be6 {[%clk 0:02:31]} 9. Ngf3 {[%clk 0:02:59]}  Qe7 {[%clk 0:02:05]} 10. Be2 {[%clk 0:02:59]}  Rad8 {[%clk 0:02:03]} 11. O-O {[%clk 0:02:58]}  h6 {[%clk 0:02:00]} 12. b4 {[%clk 0:02:57]}  a6 {[%clk 0:01:59]} 13. Rc1 {[%clk 0:02:57]}  Nb6 {[%clk 0:01:59]} 14. Rxc6 {[%clk 0:02:53]}  bxc6 {[%clk 0:01:58]} 15. Nxe5 {[%clk 0:02:54]}  Bd7 {[%clk 0:01:54]} 16. d4 {[%clk 0:02:42]}  Bxe5 {[%clk 0:01:48]} 17. dxe5 {[%clk 0:02:42]}  Bf5 {[%clk 0:01:41]} 18. Bd4 {[%clk 0:02:40]}  Nd7 {[%clk 0:01:34]} 19. Qa1 {[%clk 0:02:38]}  Qe6 {[%clk 0:01:30]} 20. Nf3 {[%clk 0:02:11]}  Be4 {[%clk 0:01:01]} 21. Rc1 {[%clk 0:02:10]}  Ra8 {[%clk 0:00:54]} 22. Qc3 {[%clk 0:02:07]}  Nb6 {[%clk 0:00:50]} 23. Nd2 {[%clk 0:02:02]}  Bg6 {[%clk 0:00:31]} 24. Qxc6 {[%clk 0:01:59]}  Nd5 {[%clk 0:00:20]} 25. Qxe6 {[%clk 0:01:50]}  fxe6 {[%clk 0:00:21]} 26. f4 {[%clk 0:01:50]}  a5 {[%clk 0:00:20]} 27. b5 {[%clk 0:01:50]}  Rfb8 {[%clk 0:00:20]} 28. g3 {[%clk 0:01:48]}  Rb7 {[%clk 0:00:19]} 29. Nb3 {[%clk 0:01:45]}  Rab8 {[%clk 0:00:19]} 30. a4 {[%clk 0:01:44]}  Nb4 {[%clk 0:00:15]} 31. Nxa5 {[%clk 0:01:44]}  Rb6 {[%clk 0:00:12]} 32. Rxc7 {[%clk 0:01:42]}  Nd5 {[%clk 0:00:12]} 33. Rc1 {[%clk 0:01:40]}  Be4 {[%clk 0:00:09]} 34. Kf2 {[%clk 0:01:38]}  Kf7 {[%clk 0:00:08]} 35. Bxb6 {[%clk 0:01:37]}  Nxb6 {[%clk 0:00:08]} 36. Nc6 {[%clk 0:01:33]}  Ra8 {[%clk 0:00:06]} 37. a5 {[%clk 0:01:33]}  Nd7 {[%clk 0:00:05]} 38. a6 {[%clk 0:01:33]}  Nb6 {[%clk 0:00:05]} 39. Nd4 {[%clk 0:01:32]}  Nd5 {[%clk 0:00:05]} 40. Bf3 {[%clk 0:01:32]}  Bxf3 {[%clk 0:00:05]} 41. Kxf3 {[%clk 0:01:33]}  Rb8 {[%clk 0:00:05]} 42. Rc5 {[%clk 0:01:31]}  Nb4 {[%clk 0:00:04]} 43. a7 {[%clk 0:01:31]}  Ra8 {[%clk 0:00:04]} 44. b6 {[%clk 0:01:32]}  Nd3 {[%clk 0:00:05]} 45. Rc7+ {[%clk 0:01:32]}  Kg6 {[%clk 0:00:05]} 46. b7 {[%clk 0:01:31]} 1-0


[Site "https://www.chess.com"]